fUSD/lending_fUSD_20240204
["ID","MTS","AMOUNT","RATE_DAILY","PERIOD"]
[313275398,1707065453016,-257.02772275,0.00047123,31]
[313275399,1707065453026,-563.2811629,0.00047123,31]
[313275400,1707065453037,-500.0,0.00047123,31]
[313275401,1707065453046,-500.0,0.00047123,31]
[313275402,1707065453057,-585.16513533,0.00047123,31]
[313275403,1707065453066,-500.0,0.00047123,7]
[313275404,1707065453076,-500.0,0.00047123,31]
[313275405,1707065453086,-1766.84,0.00047123,31]
[313275406,1707065453095,-500.0,0.00047123,31]
[313275407,1707065453105,-173.69402525,0.00047123,31]
[313275408,1707065453114,-306.33921382,0.00047123,31]
[313275409,1707065453123,-500.0,0.00047123,31]
[313275410,1707065453133,-500.0,0.00047123,31]
[313275411,1707065453143,-500.0,0.00047123,31]
[313275412,1707065453152,-500.0,0.00047123,7]
[313275413,1707065453162,-500.0,0.00047123,31]
[313275414,1707065453171,-500.0,0.00047123,31]
[313275415,1707065453181,-609.65837381,0.00047123,31]
[313275416,1707065453190,-500.0,0.00047123,31]
[313275417,1707065453200,-1045.34,0.00047123,31]
[313275418,1707065453209,-500.0,0.00047123,31]
[313275419,1707065453218,-480.25572118,0.00047123,31]
[313275420,1707065453228,-500.0,0.00047123,31]
[313275421,1707065453238,-557.41000602,0.00047123,31]
[313275422,1707065453247,-500.0,0.00047123,31]
[313275423,1707065453257,-500.0,0.00047123,31]
[313275424,1707065453267,-500.0,0.00047123,31]
[313275425,1707065453278,-1000.0,0.00047123,7]
[313275426,1707065453288,-500.0,0.00047123,31]
[313275427,1707065453298,-541.64325533,0.00047123,31]
[313275428,1707065453307,-4762.94,0.00047123,31]
[313275429,1707065453317,-616.29959921,0.00047123,31]
[313275430,1707065453327,-241.6343183,0.00047123,31]
[313275431,1707065453338,-500.0,0.00047123,31]
[313275432,1707065453349,-578.88946099,0.00047123,31]
[313275433,1707065453360,-163.82384529,0.00047123,31]
[313275434,1707065453370,-500.0,0.00047123,31]
[313275435,1707065453380,-500.0,0.00047123,31]
[313275436,1707065453391,-386.48052404,0.00047123,31]
[313275437,1707065453401,-548.85495147,0.00047123,31]
[313275438,1707065453411,-500.0,0.00047123,31]
[313275439,1707065453422,-501.91007744,0.00047123,31]
[313275440,1707065453431,-518.3459904,0.00047123,31]
[313275441,1707065453442,-5000.0,0.00047123,50]
[313275442,1707065453451,-500.0,0.00047123,31]
[313275443,1707065453463,-560.00410489,0.00047123,31]
[313275444,1707065453473,-500.0,0.00047123,31]
[313275445,1707065453483,-500.0,0.00047123,31]
[313275446,1707065453493,-604.01,0.00047123,31]
[313275447,1707065453502,-417.81384553,0.00047123,31]
[313275448,1707065453511,-289.07312009,0.00047123,31]
[313275449,1707065453520,-545.32439729,0.00047123,31]
[313275450,1707065453532,-500.0,0.00047123,7]
[313275451,1707065453542,-500.0,0.00047123,31]
[313275452,1707065453553,-500.0,0.00047123,31]
[313275453,1707065453563,-520.78799629,0.00047123,31]
[313275454,1707065453574,-318.1116502,0.00047123,31]
[313275455,1707065453584,-295.42905703,0.00047123,31]
[313275456,1707065453593,-500.0,0.00047123,31]
[313275457,1707065453604,-609.66,0.00047123,10]
[313275458,1707065453614,-567.70606186,0.00047123,31]
[313275459,1707065453626,-500.0,0.00047123,31]
[313275460,1707065453635,-398.52857614,0.00047123,31]
[313275461,1707065453645,-500.0,0.00047123,31]
[313275462,1707065453654,-1063.71,0.00047123,31]
[313275463,1707065453663,-203.32430351,0.00047123,2]
[313275464,1707065453674,-563.45706405,0.00047123,31]
[313275465,1707065453683,-500.0,0.00047123,31]
[313275466,1707065453695,-304.84446749,0.00047123,31]
[313275467,1707065453705,-637.9354899,0.00047123,31]
[313275468,1707065453714,-578.49740997,0.00047123,31]
[313275469,1707065453724,-570.50024129,0.00047123,31]
[313275470,1707065453734,-512.10468242,0.00047123,31]
[313275471,1707065453744,-500.0,0.00047123,31]
[313275472,1707065453753,-500.0,0.00047123,31]
[313275473,1707065453763,-1000.0,0.00047123,50]
[313275474,1707065453773,-500.0,0.00047123,31]
[313275475,1707065453782,-500.0,0.00047123,31]
[313275476,1707065453792,-617.63181686,0.00047123,31]
[313275477,1707065453804,-580.32698479,0.00047123,31]
[313275478,1707065453814,-500.0,0.00047123,31]
[313275479,1707065453825,-364.29002586,0.00047123,31]
[313275480,1707065453835,-500.0,0.00047123,31]
[313275481,1707065453846,-500.0,0.00047123,31]
[313275482,1707065453855,-500.0,0.00047123,31]
[313275483,1707065453865,-532.40599634,0.00047123,31]
[313275484,1707065453875,-500.0,0.00047123,31]
[313275485,1707065453884,-154.8373976,0.00047123,31]
[313275486,1707065453894,-500.0,0.00047123,31]
[313275487,1707065453903,-1138.94,0.00047123,31]
[313275488,1707065453913,-519.80554126,0.00047123,31]
[313275489,1707065453923,-500.0,0.00047123,31]
[313275490,1707065453932,-476.35109648,0.00047123,31]
[313275491,1707065453941,-562.50832563,0.00047123,31]
[313275492,1707065453951,-500.0,0.00047123,31]
[313275493,1707065453961,-500.0,0.00047123,31]
[313275494,1707065453972,-289.01526587,0.00047123,31]
[313275495,1707065453982,-532.59677335,0.00047123,31]
[313275496,1707065453991,-500.0,0.00047123,31]
[313275497,1707065454001,-543.27559831,0.00047123,7]
[313275498,1707065454011,-224.94279616,0.00047123,31]
[313275499,1707065454021,-191.94209521,0.00047123,31]
[313275500,1707065454030,-192.17316151,0.00047123,31]
[313275501,1707065454041,-835.5,0.00047123,30]
[313275502,1707065454051,-500.0,0.00047123,31]
[313275503,1707065454061,-258.62060234,0.00047123,31]
[313275504,1707065454071,-529.84402933,0.00047123,31]
[313275505,1707065454080,-364.36222544,0.00047123,31]
[313275506,1707065454091,-548.32153943,0.00047123,31]
[313275507,1707065454100,-563.63685547,0.00047123,31]
[313275508,1707065454110,-916.61,0.00047123,31]
[313275509,1707065454120,-561.40044257,0.00047123,31]
[313275510,1707065454129,-509.08903532,0.00047123,31]
[313275511,1707065454139,-500.0,0.00047123,31]
[313275512,1707065454149,-4613.04,0.00047123,31]
[313275513,1707065454158,-500.0,0.00047123,31]
[313275514,1707065454168,-518.19549821,0.00047123,31]
[313275515,1707065454178,-642.42015834,0.00047123,31]
[313275516,1707065454187,-500.0,0.00047123,7]
[313275517,1707065454196,-477.31945531,0.00047123,31]
[313275518,1707065454205,-500.0,0.00047123,31]
[313275519,1707065454215,-500.0,0.00047123,31]
[313275520,1707065454224,-351.83399129,0.00047123,31]
[313275521,1707065454234,-500.0,0.00047123,31]
[313275522,1707065454243,-500.0,0.00047123,31]
[313275523,1707065454253,-630.13,0.00047123,31]
[313275524,1707065454262,-500.0,0.00047123,31]
[313275525,1707065454271,-536.43570392,0.00047123,31]
[313275526,1707065454280,-500.0,0.00047123,31]
[313275527,1707065454292,-157.3426283,0.00047123,31]
[313275528,1707065454302,-500.0,0.00047123,31]
[313275529,1707065454311,-562.93855781,0.00047123,31]
[313275530,1707065454321,-500.0,0.00047123,31]
[313275531,1707065454331,-500.0,0.00047123,31]
[313275532,1707065454340,-502.67403989,0.00047123,31]
[313275533,1707065454351,-500.0,0.00047123,31]
[313275534,1707065454361,-500.0,0.00047123,31]
[313275535,1707065454371,-500.0,0.00047123,31]
[313275536,1707065454383,-500.0,0.00047123,31]
[313275537,1707065454393,-500.0,0.00047123,31]
[313275538,1707065454404,-500.0,0.00047123,31]
[313275539,1707065454415,-500.0,0.00047123,31]
[313275540,1707065454426,-639.96237578,0.00047123,31]
[313275541,1707065454437,-289.03213823,0.00047123,31]
[313275542,1707065454448,-169.89326847,0.00047123,31]
[313275543,1707065454458,-225.2773919,0.00047123,31]
[313275544,1707065454469,-528.46,0.00047123,31]
[313275545,1707065454480,-500.0,0.00047123,31]
[313275546,1707065454490,-500.0,0.00047123,31]
[313275547,1707065454500,-500.0,0.00047123,31]
[313275548,1707065454512,-500.0,0.00047123,31]
[313275549,1707065454522,-500.0,0.00047123,31]
[313275550,1707065454532,-265.15113864,0.00047123,31]
[313275551,1707065454543,-500.0,0.00047123,31]
[313275552,1707065454553,-242.64229742,0.00047123,31]
[313275553,1707065454563,-500.0,0.00047123,31]
[313275554,1707065454573,-500.0,0.00047123,31]
[313275555,1707065454583,-402.97370554,0.00047123,31]
[313275556,1707065454593,-500.0,0.00047123,31]
[313275557,1707065454603,-500.0,0.00047123,31]
[313275558,1707065454613,-500.0,0.00047123,31]
[313275559,1707065454623,-1923.26,0.00047123,31]
[313275560,1707065454633,-500.0,0.00047123,31]
[313275561,1707065454643,-1915.51,0.00047123,5]
[313275562,1707065454764,-500.0,0.00047123,31]
[313275563,1707065454775,-500.0,0.00047123,31]
[313275564,1707065454786,-500.0,0.00047123,31]
[313275565,1707065454796,-500.0,0.00047123,31]
[313275566,1707065454807,-500.0,0.00047123,31]
[313275567,1707065454817,-500.0,0.00047123,31]
[313275568,1707065454828,-239.93291569,0.00047123,31]
[313275569,1707065454839,-500.0,0.00047123,31]
[313275570,1707065454849,-894.9,0.00047123,31]
[313275571,1707065454859,-745.04,0.00047123,20]
[313275572,1707065454870,-500.0,0.00047123,31]
[313275573,1707065454879,-500.0,0.00047123,31]
[313275574,1707065454889,-500.0,0.00047123,31]
[313275575,1707065454899,-201.35260156,0.00047123,31]
[313275576,1707065454909,-500.0,0.00047123,31]
[313275577,1707065454920,-500.0,0.00047123,31]
[313275578,1707065454929,-500.0,0.00047123,31]
[313275579,1707065454938,-2372.38024407,0.00047123,31]
[313275580,1707065455398,11897.65361892,0.00022387,2]
[313275581,1707065479130,600.0,0.00021,2]
[313275582,1707065481126,153.20221458,9e-05,2]
[313275583,1707065481607,911.87927991,0.00020382,2]
[313275584,1707065549148,1280.11501126,0.00020382,5]
[313275585,1707065572647,150.0,0.00022,2]
[313275586,1707065583689,257.9,0.00021998,2]
[313275587,1707065584648,257.9,0.00022135,2]
[313275588,1707065586350,257.9,0.00022272,2]
[313275589,1707065587606,257.9,0.00022409,2]
[313275590,1707065596342,2459.09803517,0.00022076,2]
[313275591,1707065623774,150.0,0.00022,2]
[313275593,1707065634292,168.95,0.00022373,2]
[313275594,1707065638982,612.13701719,0.00022,2]
[313275595,1707065647063,150.85586616,0.00022,2]
[313275596,1707065650604,1413.83213866,0.0002,2]
[313275597,1707065654975,416.65727481,0.00022,2]
[313275600,1707065677787,1000.0,0.0002201,2]
[313275601,1707065679531,1431.33,0.0002201,2]
[313275602,1707065716488,184.88,0.00021964,2]
[313275603,1707065737562,550.0,0.00022,3]
[313275604,1707065799829,2000.0,0.00021933,2]
[313275605,1707065804295,-155.0,0.00022536,2]
[313275606,1707065804319,-445.0,0.00022537,2]
[313275607,1707065807030,676.87531819,0.000229,6]
[313275608,1707065807761,237.68,0.00021944,2]
[313275609,1707065821329,150.0,0.00021933,2]
[313275610,1707065884184,155.59,0.00021987,2]
[313275611,1707065891616,167.2,0.00021965,2]
[313275612,1707065893474,200.0,0.0002195,2]
[313275613,1707065943198,169.00136356,0.00021928,2]
[313275614,1707065947552,500.0,0.00021918,2]
[313275615,1707065956928,250.0,0.00021918,2]
[313275617,1707065963196,23900.0,0.00021926,2]
[313275618,1707065968742,5204.41118884,0.0002195,2]
[313275619,1707065981587,2627.30828703,0.00021918,2]
[313275620,1707065991120,200.0,0.00021926,2]
[313275621,1707065992690,5929.49,0.00021926,2]
[313275622,1707065992723,5204.41118884,0.00021918,2]
[313275623,1707065994364,417.06,0.0002,2]
[313275624,1707065994594,417.06,0.00022264,2]
[313275625,1707065997821,847.00316446,0.00021918,2]
[313275626,1707066001567,6099.83638977,0.00021918,2]
[313275627,1707066010734,4692.51269261,0.00021918,2]
[313275628,1707066010860,167.44,0.0002247,2]
[313275630,1707066017827,6099.83638977,0.00021918,2]
[313275631,1707066029618,161.41,0.00022118,2]
[313275632,1707066029807,161.41,0.00022406,2]
[313275633,1707066048632,1120.48,0.00021929,2]
[313275634,1707066051608,3279.20971511,0.0002247,2]
[313275635,1707066054900,250.0,0.00021942,2]
[313275636,1707066093664,180.67,0.00021913,2]
[313275637,1707066094281,200.0,0.00021913,2]
[313275638,1707066111448,17243.2098,0.00022442,2]
[313275639,1707066124012,301.14,0.00021913,2]
[313275640,1707066141264,184.88,0.00021904,2]
[313275641,1707066162301,1832.35,0.00021904,2]
[313275642,1707066208633,257.9,0.00021542,2]
[313275643,1707066209923,257.9,0.00021679,2]
[313275644,1707066211197,257.9,0.00021816,2]
[313275645,1707066212645,257.9,0.00021953,2]
[313275646,1707066213742,257.9,0.0002209,2]
[313275648,1707066215015,257.9,0.00022227,2]
[313275649,1707066216337,257.9,0.00022364,2]
[313275650,1707066217016,503.08,0.00021934,2]
[313275651,1707066217633,257.9,0.00022501,2]
[313275652,1707066227036,352.68,0.00022,2]
[313275653,1707066240406,2000.0,0.00022008,2]
[313275654,1707066256098,150.0,0.00021955,2]
[313275655,1707066291020,-155.0,0.00022516,2]
[313275656,1707066291040,-445.0,0.00022516,2]
[313275661,1707066319001,200.0,0.00021905,2]
[313275671,1707066402249,168.33,0.00021889,2]
[313275672,1707066403619,9619.45,0.00021889,2]
[313275673,1707066421379,283.83163888,0.0002251,2]
[313275674,1707066422888,155.0,0.0002251,2]
[313275675,1707066427276,250.0,0.00021951,2]
[313275676,1707066430026,155.0,0.0002251,2]
[313275677,1707066441966,200.0,0.00021972,2]
[313275678,1707066446502,161.41,0.0002216,2]
[313275679,1707066457278,419.58,0.00020184,2]
[313275680,1707066457483,419.58,0.00022448,2]
[313275681,1707066470924,1315.02,0.00022213,2]
[313275682,1707066484389,202.88414837,0.00022102,2]
[313275683,1707066520258,200.0,0.00021896,2]
[313275684,1707066552242,865.6,0.00021872,2]
[313275685,1707066567852,200.0,0.00021861,2]
[313275686,1707066593772,3133.39834862,0.00021536,2]
[313275687,1707066607334,275.05492911,0.00021536,2]
[313275688,1707066611764,3133.39834862,0.00021536,2]
[313275689,1707066627110,221.6789,0.0002247,2]
[313275690,1707066628702,250.0,0.00021865,2]
[313275694,1707066631868,-283.83163888,0.00022533,2]
[313275696,1707066631878,-155.0,0.00022534,2]
[313275697,1707066631889,-474.9218197,0.00022535,2]
[313275699,1707066631899,-497.08741967,0.0002254,2]
[313275700,1707066631908,-150.0,0.00022548,2]
[313275702,1707066631918,-162.21039582,0.0002257,2]
[313275703,1707066631927,-162.21039578,0.00022617,2]
[313275704,1707066631937,-440.71718254,0.00022638,2]
[313275705,1707066631947,-384.66969793,0.00022661,2]
[313275706,1707066631958,-162.21039578,0.00022664,2]
[313275707,1707066631967,-261.82623265,0.00022669,2]
[313275708,1707066631977,-439.71428451,0.00022669,2]
[313275709,1707066631986,-301.05610386,0.00022669,2]
[313275710,1707066631998,-687.08930327,0.0002267,2]
[313275711,1707066632008,-1088.18292852,0.00022671,2]
[313275712,1707066632021,-9421.42134927,0.00022671,2]
[313275713,1707066632035,-21525.65570341,0.00022671,2]
[313275714,1707066632063,-2133.7925293,0.00022671,2]
[313275715,1707066632080,-137573.93518584,0.00022671,2]
[313275716,1707066632091,-162.21039578,0.00022711,2]
[313275717,1707066632101,-161.41,0.00022737,2]
[313275718,1707066632110,-162.21039578,0.00022759,2]
[313275719,1707066632120,-85053.0,0.00022769,2]
[313275720,1707066632131,-162.21039578,0.00022806,2]
[313275721,1707066632140,-162.21039578,0.00022853,2]
[313275722,1707066632150,-160.7240338,0.00022898,2]
[313275723,1707066632161,-158.81514118,0.00022899,2]
[313275724,1707066632173,-13973.62709611,0.000229,2]
[313275725,1707066632185,-267.3,0.000229,2]
[313275726,1707066632198,-980.05659612,0.000229,2]
[313275728,1707066632207,-151.55964903,0.000229,2]
[313275730,1707066632217,-162.21039578,0.000229,2]
[313275732,1707066632226,-382.88679517,0.000229,4]
[313275734,1707066632236,-22.8465639,0.000229,2]
[313275736,1707066632248,-601.02611314,0.000229,2]
[313275738,1707066632257,-331.00075914,0.000229,2]
[313275740,1707066632266,-255.21745463,0.000229,6]
[313275743,1707066632285,-283.71427118,0.000229,2]
[313275745,1707066632297,-151.12841013,0.00022988,2]
[313275747,1707066632306,-211.13487274,0.00022996,2]
[313275749,1707066632316,-3039.31060904,0.00022996,2]
[313275751,1707066632327,-159.30807019,0.00022996,2]
[313275753,1707066632336,-260.99505921,0.00022996,2]
[313275756,1707066632346,-1817.65805484,0.00022996,2]
[313275758,1707066632358,-381500.05264876,0.00022998,2]
[313275760,1707066632371,-258.75,0.00022998,2]
[313275762,1707066632382,-1159.77435584,0.00022998,2]
[313275775,1707066633118,175.75846491,0.00020402,2]
[313275777,1707066637984,-168.95,0.00022991,2]
[313275778,1707066637994,-2078.7534975,0.00022998,2]
[313275779,1707066638040,-454.73297172,0.00022998,2]
[313275780,1707066638053,-2062.21623981,0.00022998,2]
[313275781,1707066638094,-412.94256073,0.00022998,2]
[313275782,1707066638106,-2309.62655163,0.00022998,2]
[313275783,1707066638118,-23460.22969866,0.00022998,2]
[313275784,1707066638150,-167147.1555503,0.00022998,2]
[313275785,1707066638160,-500.0,0.00022998,2]
[313275786,1707066638171,-166.81229506,0.00022998,2]
[313275787,1707066638181,-26586.31421406,0.00022999,2]
[313275788,1707066638190,-166.70395157,0.00022999,2]
[313275789,1707066638200,-390.87264122,0.00022999,2]
[313275790,1707066638209,-369.84671606,0.00022999,2]
[313275791,1707066638219,-500.0,0.00022999,2]
[313275792,1707066638229,-500.0,0.00022999,2]
[313275793,1707066638238,-500.0,0.00022999,2]
[313275794,1707066638248,-179.47967903,0.00022999,2]
[313275795,1707066638257,-640.12308466,0.00022999,2]
[313275796,1707066638267,-500.0,0.00022999,2]
[313275797,1707066638279,-153.12419315,0.00022999,2]
[313275799,1707066638289,-500.0,0.00022999,2]
[313275801,1707066638299,-500.0,0.00022999,2]
[313275803,1707066638309,-500.0,0.00022999,2]
[313275805,1707066638318,-500.0,0.00022999,2]
[313275807,1707066638329,-217.99716632,0.00022999,2]
[313275809,1707066638338,-608746.87598039,0.00022999,3]
[313275811,1707066638348,-5923.24603767,0.00023,3]
[313275813,1707066638358,-570.87540706,0.00023,3]
[313275815,1707066638368,-9613009.24335115,0.00023,2]
[313275817,1707066638379,-327.38087984,0.00023,2]
[313275820,1707066638396,-12739.27028375,0.00023,2]
[313275822,1707066638409,-4330.21871117,0.00023,2]
[313275825,1707066638424,-24468.8589162,0.00023,2]
[313275827,1707066638436,-31068.10267297,0.00023,2]
[313275829,1707066638447,-239965.66464779,0.00023,2]
[313275832,1707066638460,-93570.62954738,0.00023,2]
[313275834,1707066638472,-79812.30013965,0.00023,2]
[313275836,1707066638483,-89244.75625685,0.00023,2]
[313275839,1707066638495,-13251.39306401,0.00023,2]
[313275929,1707066640458,-5477.03268949,0.00023,2]
[313275930,1707066640470,-2435.38767799,0.00023,2]
[313275931,1707066640515,-276.29600004,0.00023,2]
[313275932,1707066640527,-564.56499991,0.00023,2]
[313275933,1707066640574,-1652.28302073,0.00023,2]
[313275934,1707066640585,-1478.37000005,0.00023,2]
[313275935,1707066640596,-2400.57503415,0.00023,2]
[313275936,1707066640607,-11733.70872138,0.00023,2]
[313275937,1707066640618,-2372.594103,0.00023,2]
[313275938,1707066640630,-2544.9778829,0.00023,2]
[313275939,1707066640641,-9912.81271741,0.00023,2]
[313275940,1707066640652,-16431.9742814,0.00023,2]
[313275941,1707066640663,-4552.98244124,0.00023,2]
[313275942,1707066641277,-106963.0158201,0.00023,2]
[313275943,1707066641291,-888.09460618,0.00023,2]
[313275944,1707066641302,-10711.20257863,0.00023,2]
[313275945,1707066641319,-5364.02240599,0.00023,2]
[313275946,1707066641335,-769.59131559,0.00023,2]
[313275947,1707066641347,-22533.87158894,0.00023,2]
[313275948,1707066641360,-3293.20827566,0.00023,2]
[313275949,1707066641371,-49978.65913483,0.00023,2]
[313275951,1707066641539,-819.68910007,0.00023,2]
[313275952,1707066641551,-11660.75252731,0.00023,2]
[313275953,1707066641564,-80592.79350091,0.00023,2]
[313275954,1707066641574,-2603.078518,0.00023,2]
[313275955,1707066641583,-822791.63679633,0.00023,2]
[313275956,1707066641594,-1491.09837849,0.00023,2]
[313275957,1707066641605,-580.58563103,0.00023,2]
[313275958,1707066641617,-2162.1,0.00023,2]
[313275959,1707066641632,-632.61669698,0.00023,2]
[313275974,1707066642909,-2177.52205589,0.00023,2]
[313275976,1707066642921,-505.86101804,0.00023,2]
[313275979,1707066642932,-353.48468644,0.00023,2]
[313275981,1707066642943,-7190.72063001,0.00023,2]
[313275985,1707066642970,-12576.2194883,0.00023,2]
[313275987,1707066642982,-495.44200308,0.00023,2]
[313275993,1707066643047,-473.22390086,0.00023,2]
[313275995,1707066643060,-604.8212046,0.00023,2]
[313276002,1707066643136,-1065695.36718887,0.00023,2]
[313276007,1707066643193,-2295.6112263,0.00023,2]
[313276009,1707066643205,-958.76890871,0.00023,2]
[313276011,1707066643216,-264.2689681,0.00023,2]
[313276013,1707066643227,-2949.130131,0.00023,2]
[313276032,1707066645973,-548562.53576969,0.00023,2]
[313276033,1707066645984,-256.40294569,0.00023,2]
[313276034,1707066645996,-740.40033588,0.00023,2]
[313276035,1707066646008,-9924.70729016,0.00023,2]
[313276036,1707066646019,-1547.20881862,0.00023,2]
[313276037,1707066646031,-4261.87321074,0.00023,2]
[313276038,1707066646073,-155.0,0.00022999,2]
[313276039,1707066646082,-353.705,0.00023,2]
[313276040,1707066646150,-19133.76629277,0.00023,2]
[313276041,1707066646161,-9582.5,0.00023,2]
[313276042,1707066646172,-2601.52329043,0.00023,2]
[313276043,1707066646185,-2199.59589598,0.00023,2]
[313276044,1707066646197,-6294.85294738,0.00023,2]
[313276045,1707066646208,-3745.7224976,0.00023,2]
[313276046,1707066646242,-3851.79424542,0.00023,2]
[313276047,1707066646253,-2108.9075643,0.00023,2]
[313276048,1707066646264,-335707.61902859,0.00023,2]
[313276049,1707066646276,-4992.51339331,0.00023,2]
[313276050,1707066646300,-573.27155235,0.00023,2]
[313276051,1707066646315,-6245.28623264,0.00023,2]
[313276052,1707066646327,-29621.49229312,0.00023,2]
[313276053,1707066646356,-41814.41295861,0.00023,2]
[313276057,1707066722945,150.0,0.00022,2]
[313276058,1707066724223,150.0,0.00022548,2]
[313276059,1707066755242,323.01906998,0.00022077,2]
[313276060,1707066755857,17288.1297019,0.00022548,2]
[313276062,1707066758867,513.33931697,0.00022767,2]
[313276063,1707066760312,561.86622075,0.00020467,2]
[313276064,1707066762827,623.3393929,0.00022077,2]
[313276065,1707066767788,3033.28117945,0.00021847,2]
[313276066,1707066768303,1101.45649291,0.00022548,2]
[313276067,1707066782951,150.0,0.00022,2]
[313276068,1707066784418,409.56990555,0.00022548,2]
[313276071,1707066838960,623.61336508,0.00022075,2]
[313276072,1707066850970,848.51334281,0.00022548,2]
[313276073,1707066853834,150.0,0.00021998,2]
[313276074,1707066855705,150.0,0.00022546,2]
[313276075,1707066855910,284.88299005,0.00022548,2]
[313276076,1707066857813,260.71319616,0.00022548,2]
[313276077,1707066860115,858.66470521,0.00022075,2]
[313276078,1707066870824,213.88677894,0.00022075,2]
[313276079,1707066873772,270.05230526,0.00022075,2]
[313276080,1707066876923,848.51334281,0.00022075,2]
[313276081,1707066878091,858.66470521,0.00022075,2]
[313276082,1707066885177,612.13701719,0.00022075,2]
[313276083,1707066894960,288.12739167,0.00022075,2]
[313276084,1707066895904,285.11121778,0.00022075,2]
[313276085,1707066896103,858.66470521,0.00022075,2]
[313276088,1707066905151,612.13701719,0.00022075,2]
[313276089,1707066909415,422.05,0.00020763,2]
[313276091,1707066910660,250.0,0.00022681,2]
[313276092,1707066914107,448.96695143,0.00022075,2]
[313276093,1707066923157,612.13701719,0.00022075,2]
[313276094,1707066923915,168.03386986,0.00022075,2]
[313276095,1707066945152,354.45056848,0.00022075,2]
[313276096,1707066947439,163.85,0.00022708,2]
[313276097,1707066961829,15252.82823206,0.0002277,2]
[313276098,1707066984684,388.43,0.00022447,2]
[313276099,1707067041477,628.82,0.0002251,2]
[313276100,1707067060387,200.0,0.00022387,2]
[313276101,1707067063637,3074.03,0.00022387,2]
[313276102,1707067063970,180.67,0.00022387,2]
[313276103,1707067093263,628.85,0.00022429,2]
[313276105,1707067106466,250.0,0.00022429,2]
[313276106,1707067128623,2000.0,0.00022492,2]
[313276107,1707067144593,2705.0,0.00022492,2]
[313276108,1707067202009,200.0,0.00022492,2]
[313276109,1707067210509,171.18,0.00017944,2]
[313276110,1707067214555,23549.54,0.00022429,2]
[313276111,1707067273482,23900.0,0.00022429,2]
[313276112,1707067326070,280.0,0.00022492,2]
[313276113,1707067370891,440.94,0.00020564,2]
[313276114,1707067372680,250.0,0.00022414,2]
[313276115,1707067413869,167.17,0.00022414,2]
[313276116,1707067449006,1354.1497,0.00022459,2]
[313276117,1707067494177,774.46,0.00022191,2]
[313276118,1707067497916,200.0,0.00022135,2]
[313276120,1707067511486,440.2,0.00022123,2]
[313276121,1707067513494,500.0,0.00022123,2]
[313276122,1707067539358,168.95,0.00022123,2]
[313276123,1707067542432,550.0,0.00022,3]
[313276124,1707067547624,250.0,0.00022179,2]
[313276125,1707067555332,1769.89,0.00022111,2]
[313276126,1707067586046,150.0,0.0002215,2]
[313276127,1707067601485,2000.0,0.00022206,2]
[313276128,1707067626408,175.74,0.00016712,2]
[313276129,1707067637789,282.40257595,0.0002251,2]
[313276130,1707067653375,1049.14158098,0.0002251,2]
[313276131,1707067708554,28159.01,0.00022273,2]
[313276132,1707067721209,200.0,0.00022227,2]
[313276133,1707067762747,309.45,0.00022227,2]
[313276134,1707067793512,1400.57928577,0.000225,2]
[313276135,1707067796520,155.59,0.00022325,2]
[313276136,1707067806986,200.0,0.00022333,2]
[313276137,1707067821169,1852.42,0.00022387,2]